bitfinex/quotes_BTCUSD_20250519
["timestamp","ask_amount","ask_price","bid_price","bid_amount"]
[1747676985904,0.004,105330.0,105320.0,1.25335466]
[1747676986105,0.004,105330.0,105320.0,0.92837985]
[1747676986264,0.01349316,105330.0,105320.0,0.92837985]
[1747676986466,0.0353,105330.0,105320.0,0.6697617]
[1747676986674,0.09498047,105330.0,105320.0,0.83107045]
[1747676986851,0.10447426,105330.0,105320.0,0.84056487]
[1747676987462,0.30384765,105330.0,105320.0,0.83107063]
[1747676987726,0.10447426,105330.0,105320.0,0.84056487]
[1747676987868,0.11396814,105330.0,105320.0,0.84056487]
[1747676988522,0.28486106,105330.0,105320.0,0.65974079]
[1747676988731,0.28486106,105330.0,105320.0,0.8115553]
[1747676989149,0.28486106,105330.0,105320.0,0.82104963]
[1747676989528,0.28486106,105330.0,105320.0,0.70487249]
[1747676989736,0.27536727,105330.0,105320.0,1.04487267]
[1747676989895,0.27136727,105330.0,105320.0,1.03526767]
[1747676990096,0.1898614,105340.0,105330.0,0.34]
[1747676990343,0.1898614,105340.0,105330.0,0.66497481]
[1747676990539,0.19224252,105340.0,105330.0,0.66497481]
[1747676990779,0.1898614,105340.0,105330.0,0.87384199]
[1747676991009,0.01898522,105340.0,105330.0,2.18714662]
[1747676991234,0.03047747,105340.0,105330.0,2.17765346]
[1747676991469,0.03997026,105340.0,105330.0,2.17765346]
[1747676991902,0.03997026,105340.0,105330.0,2.12822646]
[1747676992497,0.05146314,105340.0,105330.0,2.12822646]
[1747676992677,0.24132536,105340.0,105330.0,1.80325183]
[1747676992876,0.24132536,105340.0,105330.0,1.81274526]
[1747676993079,0.30642536,105340.0,105330.0,1.03042326]
[1747676993599,0.29693284,105340.0,105330.0,0.90125683]
[1747676993787,0.29693284,105340.0,105330.0,1.04458183]
[1747676995135,0.28744014,105340.0,105330.0,1.02882083]
[1747676995469,0.26845447,105340.0,105330.0,0.34842771]
[1747676995693,0.26845447,105340.0,105330.0,0.67340252]
[1747676996778,0.26845447,105340.0,105330.0,1.28260252]
[1747676996987,0.26845447,105340.0,105330.0,1.29209649]
[1747676997211,0.03247828,105340.0,105330.0,3.10823685]
[1747676997410,0.23183275,105340.0,105330.0,3.09874342]
[1747676997609,0.06537828,105340.0,105330.0,3.10823703]
[1747676997855,0.06537828,105340.0,105330.0,3.1272238]
[1747676998071,0.25523968,105340.0,105330.0,3.1272238]
[1747676998274,0.26473275,105340.0,105330.0,3.11773046]
[1747676998502,0.25524023,105340.0,105330.0,1.92325942]
[1747676999012,0.25524023,105340.0,105330.0,1.93275303]
[1747677002649,0.25524023,105340.0,105330.0,1.94224637]
[1747677002796,0.004,105340.0,105330.0,1.94224637]
[1747677002998,0.01349225,105340.0,105330.0,1.97344637]
[1747677003430,0.02298468,105340.0,105330.0,1.97344637]
[1747677003615,0.03247729,105340.0,105330.0,1.9875558]
[1747677003827,0.02298468,105340.0,105330.0,1.9875558]
[1747677004348,0.01349225,105340.0,105330.0,1.9875558]
[1747677004612,0.02298468,105340.0,105330.0,2.0181558]
[1747677004825,0.24143148,105350.0,105330.0,2.0181558]
[1747677004826,0.031,105360.0,105350.0,0.55831877]
[1747677005030,0.01898144,105360.0,105350.0,1.97503158]
[1747677005233,0.01898144,105360.0,105350.0,1.70221258]
[1747677005234,0.02895089,105360.0,105350.0,1.70221258]
[1747677005404,0.0384417,105360.0,105350.0,1.70221258]
[1747677005611,0.02895062,105360.0,105350.0,1.70221258]
[1747677005824,0.0384417,105360.0,105350.0,1.54600358]
[1747677006030,0.08293287,105360.0,105350.0,1.35661458]
[1747677006235,0.0734417,105360.0,105350.0,1.35661458]
[1747677006821,0.03695062,105360.0,105350.0,1.37569866]
[1747677007234,0.0464417,105360.0,105350.0,1.37569866]
[1747677007613,0.27625832,105360.0,105350.0,1.37569866]
[1747677007817,0.0769417,105360.0,105350.0,1.37569866]
[1747677008442,0.26676706,105360.0,105350.0,1.37569866]
[1747677008667,0.27625823,105360.0,105350.0,1.37569866]
[1747677008837,0.27928598,105360.0,105350.0,0.35908408]
[1747677009038,0.27928598,105360.0,105350.0,0.70072408]
[1747677009243,0.27928598,105360.0,105350.0,1.02569889]
[1747677009595,0.37659538,105360.0,105350.0,0.00842771]
[1747677010743,0.37659538,105360.0,105350.0,0.33340252]
[1747677010938,0.37659538,105360.0,105350.0,0.32497481]
[1747677012193,0.37659538,105360.0,105350.0,0.66665481]
[1747677012426,0.37659538,105360.0,105350.0,0.67508252]
[1747677014728,0.37659538,105360.0,105350.0,1.22390985]
[1747677015153,0.35761313,105360.0,105350.0,1.01508252]
[1747677015353,0.35761313,105360.0,105350.0,1.02457468]
[1747677015584,0.35761313,105360.0,105350.0,1.22391012]
[1747677016005,0.3671043,105360.0,105350.0,1.22391012]
[1747677016816,0.3671043,105360.0,105350.0,1.01508252]
[1747677017262,0.3671043,105360.0,105350.0,1.20492589]
[1747677017441,0.3671043,105360.0,105350.0,1.22390976]
[1747677017644,0.3671043,105360.0,105350.0,1.21441796]
[1747677017847,0.3671043,105360.0,105350.0,1.22390994]
[1747677018007,0.3671043,105360.0,105350.0,1.22190994]
[1747677018206,0.0274599,105360.0,105350.0,1.24089345]
[1747677018413,0.22677634,105360.0,105350.0,1.24089345]
[1747677018621,0.04644215,105360.0,105350.0,1.24089345]
[1747677018816,0.00847837,105360.0,105350.0,3.12741879]
[1747677019015,0.00847837,105360.0,105350.0,2.28237598]
[1747677019223,0.02745963,105360.0,105350.0,2.28237598]
[1747677019541,0.02745963,105360.0,105350.0,2.17465898]
[1747677019749,0.02745963,105360.0,105350.0,2.06046798]
[1747677020452,0.04644152,105360.0,105350.0,1.53533017]
[1747677020687,0.04644152,105360.0,105350.0,1.36030525]
[1747677020888,0.04644152,105360.0,105350.0,1.36030471]
[1747677021355,0.04644152,105360.0,105350.0,1.37096108]
[1747677022148,0.26706751,105360.0,105350.0,1.43746455]
[1747677022375,0.26706751,105360.0,105350.0,1.26304108]
[1747677022650,0.26706751,105360.0,105350.0,1.22507424]
[1747677022802,0.26706751,105360.0,105350.0,0.36072408]
[1747677022803,0.27958598,105360.0,105350.0,0.36072408]
[1747677023158,0.27958598,105360.0,105350.0,0.68369889]
[1747677023359,0.27958598,105360.0,105350.0,1.02369889]
[1747677023796,0.27958598,105360.0,105350.0,1.21354226]
[1747677024520,0.27958598,105360.0,105350.0,1.22303442]
[1747677024717,0.27958598,105360.0,105350.0,1.34517412]
[1747677025145,0.27958598,105360.0,105350.0,1.33568205]
[1747677025346,0.27958598,105360.0,105350.0,1.21237805]
[1747677025718,0.2700949,105360.0,105350.0,1.02253468]
[1747677025930,0.2700949,105360.0,105350.0,0.00642771]
[1747677026136,0.3674043,105360.0,105350.0,0.14870771]
[1747677026359,0.3674043,105360.0,105350.0,0.00642771]
[1747677026570,0.3674043,105360.0,105350.0,0.14870771]
[1747677026786,0.3674043,105360.0,105350.0,0.00642771]
[1747677027392,0.3674043,105360.0,105350.0,0.14870771]
[1747677027610,0.3674043,105360.0,105350.0,0.47368252]
[1747677028631,0.3674043,105360.0,105350.0,0.14870771]
[1747677029757,0.3674043,105360.0,105350.0,0.14228]
[1747677030712,0.3674043,105360.0,105350.0,0.46725481]
[1747677032194,0.3674043,105360.0,105340.0,0.73473481]
[1747677032195,0.19933535,105350.0,105340.0,0.73473481]
[1747677032406,0.24082724,105350.0,105340.0,1.61556928]
[1747677032563,0.23133535,105350.0,105340.0,1.41621481]
[1747677032995,0.23133535,105350.0,105340.0,1.62506207]
[1747677033200,0.20882706,105350.0,105340.0,1.63455459]
[1747677033367,0.21831922,105350.0,105340.0,1.74428702]
[1747677033569,0.21931922,105350.0,105340.0,1.73479477]
[1747677033790,0.22131922,105350.0,105340.0,1.73479477]
[1747677034375,0.20233553,105350.0,105340.0,1.73467625]
[1747677034591,0.22494337,105350.0,105340.0,1.41621481]
[1747677034803,0.22494337,105350.0,105340.0,1.42687118]
[1747677035012,0.22494337,105350.0,105340.0,1.61673258]
[1747677035231,0.22494337,105350.0,105340.0,1.62622555]
[1747677035650,0.22494337,105350.0,105340.0,1.42687118]
[1747677035855,0.22494337,105350.0,105340.0,1.62622565]
[1747677036071,0.22494337,105350.0,105340.0,1.27459118]
[1747677036315,0.35255277,105350.0,105340.0,0.70067882]
[1747677037989,0.35255277,105350.0,105340.0,1.02565363]
[1747677038167,0.35255277,105350.0,105340.0,1.01499726]
[1747677038513,0.32225277,105350.0,105340.0,1.01499726]
[1747677038715,0.32225277,105350.0,105340.0,1.01299726]
[1747677038920,0.20233544,105350.0,105340.0,1.20285866]
[1747677039119,0.2213194,105350.0,105340.0,1.21235154]
[1747677039320,0.2118276,105350.0,105340.0,1.01299726]
[1747677039525,0.2757276,105350.0,105340.0,1.01299726]
[1747677041192,0.373037,105350.0,105340.0,0.54574245]
[1747677041357,0.373037,105350.0,105340.0,0.68802245]
[1747677042219,0.373037,105350.0,105340.0,1.01299726]
[1747677044890,0.341937,105350.0,105340.0,1.01299726]
[1747677045342,0.1003094,105350.0,105340.0,1.22184452]
[1747677045479,0.03147531,105350.0,105340.0,2.00239665]
[1747677045677,0.03147531,105350.0,105340.0,2.06769665]
[1747677045991,0.03147531,105350.0,105340.0,2.03549665]
[1747677046207,0.02198333,105350.0,105340.0,2.06769665]
[1747677046384,0.003,105350.0,105340.0,2.06769665]
[1747677046965,0.01249153,105350.0,105340.0,2.06769665]
[1747677047171,0.01249153,105350.0,105340.0,2.08180608]
[1747677047555,0.02198315,105350.0,105340.0,2.08180608]
[1747677047807,0.03147486,105350.0,105340.0,2.08180608]
[1747677049203,0.04096675,105350.0,105340.0,2.08180608]
[1747677049413,0.23081012,105350.0,105340.0,1.32027926]
[1747677049568,0.04096675,105350.0,105340.0,1.29757114]
[1747677049774,0.04096675,105350.0,105340.0,1.55498514]
[1747677049982,0.04096675,105350.0,105340.0,1.52698514]
[1747677050184,0.2403021,105350.0,105340.0,1.12388795]
[1747677050387,0.22131895,105350.0,105340.0,1.23595395]
[1747677050570,0.22131895,105350.0,105340.0,1.25493926]
[1747677050945,0.22131895,105350.0,105340.0,1.25150818]
[1747677051719,0.03147558,105350.0,105340.0,1.66807761]
[1747677051919,0.04096765,105350.0,105340.0,1.70097761]
[1747677052113,0.04096765,105350.0,105340.0,1.62856261]
[1747677052545,0.04096765,105350.0,105340.0,1.62240461]
[1747677052749,0.03147558,105350.0,105340.0,1.62240461]
[1747677053323,0.04096765,105350.0,105340.0,1.59150461]
[1747677053523,0.23081102,105350.0,105340.0,1.59150461]
[1747677053772,0.23081102,105350.0,105340.0,1.55860461]
[1747677053970,0.24030318,105350.0,105340.0,1.55860461]
[1747677054347,0.22131958,105350.0,105340.0,1.23252287]
[1747677054543,0.25411958,105350.0,105340.0,1.23252287]
[1747677054857,0.25371958,105350.0,105340.0,1.23252287]
[1747677055288,0.25371958,105350.0,105340.0,1.24201557]
[1747677055443,0.25371958,105350.0,105340.0,1.35537357]
[1747677055643,0.2442276,105350.0,105340.0,0.79555361]
[1747677055964,0.372737,105350.0,105340.0,0.4995008]
[1747677056980,0.372737,105350.0,105340.0,0.82447561]
[1747677057647,0.372737,105350.0,105340.0,0.4995008]
[1747677058406,0.372737,105350.0,105340.0,0.48882245]
[1747677061075,0.372737,105350.0,105340.0,0.27947035]
[1747677061513,0.372737,105350.0,105340.0,0.15082245]
[1747677065486,0.372737,105350.0,105340.0,0.00854245]
[1747677065910,0.24126673,105330.0,105320.0,0.81307047]
[1747677066523,0.20886673,105330.0,105320.0,0.81307047]
[1747677066742,0.20886673,105330.0,105320.0,1.02195721]
[1747677066940,0.20886673,105330.0,105320.0,1.82511221]
[1747677067141,0.20886673,105330.0,105320.0,1.73022621]
[1747677067354,0.20886673,105330.0,105320.0,1.35038221]
[1747677067563,0.20886673,105330.0,105320.0,1.35894995]
[1747677069114,0.01898677,105330.0,105320.0,1.43244419]
[1747677069323,0.02848056,105330.0,105320.0,1.43244419]
[1747677069678,0.01898668,105330.0,105320.0,1.43244419]
[1747677070055,0.03797399,105330.0,105320.0,1.43244419]
[1747677070461,0.0379739,105330.0,105320.0,1.43244419]
[1747677070674,0.04746769,105330.0,105320.0,1.43244419]
[1747677071114,0.0379739,105330.0,105320.0,1.43244419]
[1747677071339,0.0094927,105340.0,105330.0,0.21836025]
[1747677071534,0.02847801,105340.0,105330.0,1.82902706]
[1747677071706,0.21834005,105340.0,105330.0,0.99142811]
[1747677072039,0.21834005,105340.0,105330.0,1.00948964]
[1747677072241,0.21834005,105340.0,105330.0,0.47586255]
[1747677072242,0.20884735,105340.0,105330.0,0.47586255]
[1747677072443,0.37045675,105340.0,105330.0,0.00856774]
[1747677072871,0.37145675,105340.0,105330.0,0.15088774]
[1747677073437,0.37145675,105340.0,105330.0,0.00856774]
[1747677073640,0.37245675,105340.0,105330.0,0.00856774]
[1747677074270,0.69743156,105340.0,105330.0,0.00856774]
[1747677074750,0.37245675,105340.0,105330.0,0.00856774]
[1747677074934,0.71197241,105340.0,105330.0,0.00856774]
[1747677075078,1.06197241,105340.0,105330.0,0.00856774]
[1747677075950,0.27087321,105330.0,105320.0,0.00215992]
[1747677076095,0.69315742,105330.0,105320.0,0.00215992]
[1747677076287,0.89231742,105330.0,105320.0,0.00215992]
[1747677076854,0.57188346,105330.0,105320.0,0.00215992]
[1747677077206,0.57588346,105330.0,105320.0,0.00215992]
[1747677077410,0.90085827,105330.0,105320.0,0.00215992]
[1747677077847,0.57588346,105330.0,105320.0,0.00215992]
[1747677078436,0.57988346,105330.0,105320.0,0.00215992]
[1747677080549,0.56534261,105330.0,105320.0,0.00215992]
[1747677084235,0.57988346,105330.0,105320.0,0.00215992]
[1747677084453,0.90485827,105330.0,105320.0,0.00215992]
[1747677085538,0.27070639,105310.0,105300.0,0.002]
[1747677085764,0.01454085,105300.0,105280.0,0.01267835]
[1747677085959,0.6954114,105290.0,105280.0,0.01267835]
[1747677086281,0.36805547,105290.0,105280.0,0.01267835]
[1747677086500,0.30625547,105290.0,105280.0,0.01267835]
[1747677086846,0.30630324,105290.0,105280.0,0.01267835]
[1747677087431,0.3203882,105290.0,105280.0,0.01267835]
[1747677087633,0.3203882,105290.0,105280.0,0.52762276]
[1747677087634,0.3243882,105290.0,105280.0,0.52762276]
[1747677087874,0.3243882,105290.0,105280.0,0.5264427]
[1747677088072,0.33388577,105290.0,105280.0,0.54543883]
[1747677088275,0.33388577,105290.0,105280.0,0.57763883]
[1747677088486,0.03712724,105290.0,105280.0,0.61073883]
[1747677088689,0.23957628,105290.0,105280.0,0.61073883]
[1747677088912,0.23957628,105290.0,105280.0,0.90539483]
[1747677089044,0.23957628,105290.0,105280.0,0.91398218]
[1747677089252,0.23957628,105290.0,105280.0,0.37909733]
[1747677089522,0.23007916,105290.0,105280.0,0.34625735]
[1747677089709,0.23007916,105290.0,105280.0,0.20389735]
[1747677089909,0.32738856,105290.0,105280.0,0.00858735]
[1747677090112,0.35878856,105290.0,105280.0,0.00858735]
[1747677090528,0.19946789,105280.0,105270.0,0.34]
[1747677091512,0.19946789,105280.0,105260.0,0.20124]
[1747677091513,0.19948685,105270.0,105260.0,0.20124]
[1747677091718,0.19948685,105270.0,105260.0,0.342]
[1747677092148,0.19948685,105270.0,105260.0,0.84164581]
[1747677092709,0.20898596,105270.0,105260.0,1.04115161]
[1747677092934,0.00949857,105270.0,105260.0,1.26741055]
[1747677093152,0.00949857,105270.0,105260.0,1.25791108]
[1747677093357,0.03799545,105270.0,105260.0,1.25791108]
[1747677093554,0.02849625,105270.0,105260.0,1.25791108]
[1747677093753,0.04749456,105270.0,105260.0,1.25791108]
[1747677093926,0.02849625,105270.0,105260.0,1.25891108]
[1747677094122,0.20896591,105280.0,105270.0,0.24198596]
[1747677094331,0.21846357,105280.0,105270.0,1.38740858]
[1747677094546,0.22796186,105280.0,105270.0,1.38740858]
[1747677094746,0.03799226,105280.0,105270.0,1.40640626]
[1747677095205,0.03799226,105280.0,105270.0,1.08143145]
[1747677095428,0.03999226,105280.0,105270.0,1.08143145]
[1747677095638,0.03999226,105280.0,105270.0,1.74640626]
[1747677095639,0.002,105280.0,105270.0,1.74640626]
[1747677095790,0.22996223,105280.0,105270.0,1.53041534]
[1747677095983,0.22996223,105280.0,105270.0,1.41308034]
[1747677096184,0.21946439,105280.0,105270.0,0.89654704]
[1747677096426,0.20996628,105280.0,105270.0,1.05790562]
[1747677096648,0.20996628,105280.0,105270.0,1.04840642]
[1747677096808,0.20896628,105280.0,105270.0,1.05790571]
[1747677097010,0.20896628,105280.0,105270.0,1.06840491]
[1747677097594,0.20896628,105280.0,105270.0,1.03540491]
[1747677097799,0.20896628,105280.0,105270.0,1.04490402]
[1747677098442,0.20896628,105280.0,105270.0,1.03540491]
[1747677099092,0.20896628,105280.0,105270.0,1.30448193]
[1747677099294,0.02849442,105280.0,105270.0,1.37558068]
[1747677099492,0.01899613,105280.0,105270.0,1.37558068]
[1747677099670,0.01899559,105280.0,105270.0,1.37558068]
[1747677099857,0.02849379,105280.0,105270.0,1.37558068]
[1747677100053,0.02849379,105280.0,105270.0,1.05060587]
[1747677100255,0.21846421,105280.0,105270.0,0.92614704]
[1747677100497,0.21846421,105280.0,105270.0,0.91444553]
[1747677100696,0.21846421,105280.0,105270.0,0.90494642]
[1747677100915,0.01899613,105280.0,105270.0,1.07518748]
[1747677101120,0.0379919,105280.0,105270.0,1.43336229]
[1747677101471,0.04749029,105280.0,105270.0,1.43336229]
[1747677102293,0.21846476,105280.0,105270.0,1.05680571]
[1747677102539,0.20896647,105280.0,105270.0,0.87404633]
[1747677103209,0.20896647,105280.0,105270.0,0.89422388]
[1747677103424,0.20896647,105280.0,105270.0,1.30927083]
[1747677104728,0.2089661,105280.0,105270.0,1.30927038]
[1747677104946,0.21846458,105280.0,105270.0,1.30927038]
[1747677105286,0.2089661,105280.0,105270.0,1.30927038]
[1747677105505,0.21846458,105280.0,105270.0,1.30927038]
[1747677106396,0.01899595,105280.0,105270.0,1.64374394]
[1747677106583,0.00949784,105280.0,105270.0,1.64374394]
[1747677106868,0.21846366,105280.0,105270.0,0.97479673]
[1747677107104,0.20896609,105280.0,105270.0,0.68523774]
[1747677107329,0.20896609,105280.0,105270.0,0.89422388]
[1747677107547,0.20896609,105280.0,105270.0,0.90372299]
[1747677107992,0.20896609,105280.0,105270.0,1.15596299]
[1747677108965,0.20896609,105280.0,105270.0,1.16546201]
[1747677109181,0.02849452,105280.0,105270.0,0.9132855]
[1747677109441,0.0189955,105280.0,105270.0,1.56323512]
[1747677109700,0.01149523,105310.0,105300.0,0.21842245]
[1747677109924,0.02099019,105310.0,105300.0,2.35156207]
[1747677110091,0.22989658,105310.0,105300.0,2.35156207]
[1747677110324,0.22040216,105310.0,105300.0,1.20518791]
[1747677110527,0.22040216,105310.0,105300.0,1.1678894]
[1747677111006,0.21090684,105310.0,105300.0,0.81591939]
[1747677111218,0.21090684,105310.0,105300.0,0.67355939]
[1747677111426,0.24600684,105310.0,105300.0,0.67355939]
[1747677112239,0.24900684,105310.0,105300.0,0.67355939]
[1747677117327,0.21690684,105310.0,105300.0,0.67355939]
[1747677118352,0.21690684,105310.0,105300.0,0.88248598]
[1747677118768,0.01749532,105310.0,105300.0,1.62951214]
[1747677118935,0.02699028,105310.0,105300.0,1.69261214]
[1747677119139,0.03648569,105310.0,105300.0,1.69261214]
[1747677119459,0.04598128,105310.0,105300.0,1.69261214]
[1747677119664,0.03648569,105310.0,105300.0,1.69261214]
[1747677119862,0.04598128,105310.0,105300.0,1.69261214]
[1747677120047,0.03648569,105310.0,105300.0,1.69261214]
[1747677120229,0.04598128,105310.0,105300.0,1.69261214]
[1747677120428,0.03648569,105310.0,105300.0,1.69261214]
[1747677121068,0.008,105310.0,105300.0,1.70329049]
[1747677122056,0.005,105310.0,105300.0,1.70329049]
[1747677122257,0.005,105310.0,105300.0,1.80059989]
[1747677122634,0.006,105310.0,105300.0,1.81514074]
[1747677122829,0.01149316,105330.0,105320.0,0.28018098]
[1747677123039,0.03047993,105330.0,105320.0,4.37953979]
[1747677123163,0.03047993,105330.0,105320.0,4.31378079]
[1747677123386,0.03047993,105330.0,105320.0,4.21846479]
[1747677123587,0.03997363,105330.0,105320.0,2.74993672]
[1747677123833,0.02098641,105330.0,105320.0,2.70616172]
[1747677124031,0.01149316,105330.0,105320.0,2.70616172]
[1747677124233,0.02098659,105330.0,105320.0,2.70616172]
[1747677124407,0.03048029,105330.0,105320.0,2.67566172]
[1747677124613,0.03048029,105330.0,105320.0,2.70846172]
[1747677125656,0.03997408,105330.0,105320.0,1.02362572]
[1747677126008,0.23934738,105330.0,105320.0,1.02358581]
[1747677126208,0.23934819,105330.0,105320.0,1.02358581]
[1747677126429,0.04946877,105330.0,105320.0,1.03308005]
[1747677126831,0.23934819,105330.0,105320.0,1.03308005]
[1747677127425,0.23934819,105330.0,105320.0,1.0224017]
[1747677128404,0.0399748,105330.0,105320.0,1.0224017]
[1747677130678,0.22985422,105330.0,105320.0,1.00341313]
[1747677130920,0.24256709,105330.0,105320.0,0.34958458]
[1747677131135,0.27556709,105330.0,105320.0,0.34958458]
[1747677131309,0.27556709,105330.0,105320.0,0.67455939]
[1747677132124,0.27556709,105330.0,105320.0,0.34958458]
[1747677132360,0.24256709,105330.0,105320.0,0.67455939]
[1747677133095,0.27556709,105330.0,105320.0,0.67455939]
[1747677135068,0.27556709,105330.0,105320.0,0.34958458]
[1747677135252,0.37287649,105330.0,105320.0,0.34958458]
[1747677135438,0.37287649,105330.0,105320.0,0.67455939]
[1747677136762,0.37097649,105330.0,105320.0,0.00958458]
[1747677138999,0.33987649,105330.0,105320.0,0.33455939]
[1747677139207,0.01149325,105330.0,105320.0,3.24972924]
[1747677139416,0.02098659,105330.0,105320.0,3.14161824]
[1747677139633,0.01149316,105330.0,105320.0,3.66591305]
[1747677139839,0.0209865,105330.0,105320.0,3.66591305]
[1747677140043,0.01149316,105330.0,105320.0,3.33135366]
[1747677140247,0.0209865,105330.0,105320.0,3.33135366]
[1747677140654,0.03997381,105330.0,105320.0,1.81076166]
[1747677141057,0.03997372,105330.0,105320.0,1.81076166]
[1747677141277,0.03997363,105330.0,105320.0,1.81076166]
[1747677141623,0.03997363,105330.0,105320.0,1.57266333]
[1747677141960,0.03997363,105330.0,105320.0,1.76256078]
[1747677142176,0.04946733,105330.0,105320.0,1.77205565]
[1747677142403,0.04946805,105330.0,105320.0,1.77205565]
[1747677142586,0.04946796,105330.0,105320.0,1.77205565]
[1747677143576,0.04946796,105330.0,105320.0,1.421676]
[1747677143970,0.0494685,105330.0,105320.0,1.421676]
[1747677144768,0.0494685,105330.0,105320.0,1.42760501]
[1747677146462,0.23934792,105330.0,105320.0,1.56992501]
[1747677147100,0.03997462,105330.0,105320.0,1.56992501]
[1747677148313,0.2112399,105340.0,105320.0,1.56992501]
[1747677148555,0.21137611,105340.0,105330.0,0.77043181]
[1747677149070,0.21137611,105340.0,105330.0,0.66497481]
[1747677149214,0.21137611,105340.0,105330.0,0.67090382]
[1747677150434,0.21337611,105340.0,105330.0,0.67090382]
[1747677151936,0.21337611,105340.0,105330.0,0.34592901]
[1747677152135,0.21337611,105340.0,105330.0,0.67090382]
[1747677152986,0.21337611,105340.0,105330.0,0.86078324]
[1747677153134,0.20096215,105340.0,105330.0,2.59375103]
[1747677153335,0.21098328,105340.0,105330.0,2.60324464]
[1747677153639,0.21098328,105340.0,105330.0,2.61312931]
[1747677153808,0.21098328,105340.0,105330.0,2.62262301]
[1747677154019,0.21098328,105340.0,105330.0,2.64161014]
[1747677154221,0.00213621,105340.0,105330.0,3.03947829]
[1747677154625,0.00213621,105340.0,105330.0,3.04878064]
[1747677155080,0.00213621,105340.0,105330.0,3.05221172]
[1747677155504,0.00213621,105340.0,105330.0,3.14952112]
[1747677155709,0.00213621,105340.0,105330.0,3.17745135]
[1747677156318,0.00213621,105340.0,105330.0,3.14952112]
[1747677156740,0.00013621,105340.0,105330.0,3.14952112]
[1747677157123,0.00013621,105340.0,105330.0,3.15052112]
[1747677158111,0.00962846,105340.0,105330.0,3.15052112]
[1747677158308,0.00013621,105340.0,105330.0,3.16301932]
[1747677158527,0.00962846,105340.0,105330.0,3.16601932]
[1747677158743,0.00013621,105340.0,105330.0,3.13941169]
[1747677159175,0.00962846,105340.0,105330.0,3.13941169]
[1747677160302,0.00013621,105340.0,105330.0,3.13941169]
[1747677160500,0.00962846,105340.0,105330.0,3.13941169]
[1747677162101,0.00013621,105340.0,105330.0,3.13941078]
[1747677162541,0.00962846,105340.0,105330.0,3.13941078]
[1747677164287,0.00962846,105340.0,105330.0,2.48946116]
[1747677165461,0.00013621,105340.0,105330.0,2.48946116]
[1747677165683,0.00962846,105340.0,105330.0,2.48946116]
[1747677166085,0.0191208,105340.0,105330.0,2.48946116]
[1747677167187,0.00013621,105340.0,105330.0,2.48946116]
[1747677167771,0.00962855,105340.0,105330.0,2.48946116]
[1747677168107,0.00013621,105340.0,105330.0,2.48946116]
[1747677168500,0.002,105350.0,105340.0,0.63658035]
[1747677168700,0.02690128,105370.0,105360.0,0.55829806]
[1747677168950,0.03639128,105370.0,105360.0,4.39109306]
[1747677169173,0.03639128,105370.0,105360.0,4.39979299]
[1747677169313,0.03639128,105370.0,105360.0,4.40572109]
[1747677169513,0.03639119,105370.0,105360.0,4.40572109]
[1747677169723,0.03639119,105370.0,105360.0,4.22145909]
[1747677170145,0.0363911,105370.0,105360.0,4.22145909]
[1747677170369,0.0363911,105370.0,105360.0,4.18895909]
[1747677170548,0.04588119,105370.0,105360.0,4.18895909]
[1747677171088,0.04588119,105370.0,105360.0,4.20343334]
[1747677172707,0.0363911,105370.0,105360.0,4.20343334]
[1747677172995,0.0458811,105370.0,105360.0,3.97171834]
[1747677173297,0.04588119,105370.0,105360.0,3.97171834]
[1747677173856,0.0363911,105370.0,105360.0,3.97171834]
[1747677174086,0.007922,105370.0,105360.0,4.00301834]
[1747677174289,0.02690155,105370.0,105360.0,4.00301834]
[1747677174491,0.007922,105370.0,105360.0,4.03351834]
[1747677174918,0.01741164,105370.0,105360.0,4.03351834]
[1747677175581,0.02690146,105370.0,105360.0,3.99629334]
[1747677175928,0.01741164,105370.0,105360.0,3.99629334]
[1747677176131,0.02690146,105370.0,105360.0,3.99629334]
[1747677176373,0.01741164,105370.0,105360.0,3.99629334]
[1747677176685,0.007922,105370.0,105360.0,3.99629334]
[1747677176884,0.0363911,105370.0,105360.0,3.21392234]
[1747677177046,0.0363911,105370.0,105360.0,3.03880034]
[1747677178020,0.02690119,105370.0,105360.0,3.03880034]
[1747677178197,0.03639101,105370.0,105360.0,3.03880034]
[1747677178873,0.04588101,105370.0,105360.0,3.00750034]
[1747677179129,0.05537128,105370.0,105360.0,2.64212734]
[1747677179337,0.08577119,105370.0,105360.0,1.50930934]
[1747677179507,0.07628101,105370.0,105360.0,1.50930934]
[1747677179688,0.08577119,105370.0,105360.0,1.50930934]
[1747677180280,0.26608961,105370.0,105360.0,1.50930943]
[1747677180492,0.26608961,105370.0,105360.0,1.51880006]
[1747677180731,0.066792,105370.0,105360.0,1.51876006]
[1747677181170,0.27970952,105370.0,105360.0,0.36910228]
[1747677181670,0.27970952,105370.0,105360.0,0.02910228]
[1747677181907,0.27970952,105370.0,105360.0,0.17134228]
[1747677182126,0.27970952,105370.0,105360.0,0.15686803]
[1747677182347,0.37701892,105370.0,105360.0,0.01462803]
[1747677183178,0.37701892,105370.0,105360.0,0.0059281]
[1747677185797,0.37801892,105370.0,105360.0,0.0059281]
[1747677186024,0.27321952,105370.0,105360.0,0.0059281]
[1747677186948,0.27321952,105370.0,105360.0,0.01461048]
[1747677188314,0.27321952,105370.0,105360.0,0.15689048]
[1747677188962,0.37052892,105370.0,105360.0,0.01461048]
[1747677189566,0.69454198,105370.0,105360.0,0.01461048]
[1747677189768,0.70908283,105370.0,105360.0,0.00868238]
[1747677190347,0.26431644,105360.0,105350.0,0.01084659]
[1747677190528,0.36162584,105360.0,105350.0,0.01084659]
[1747677190739,0.36162584,105360.0,105350.0,0.01677552]
[1747677191489,0.70117975,105360.0,105350.0,0.01084659]
[1747677191694,0.37716669,105360.0,105350.0,0.01084659]
[1747677191917,0.27024689,105340.0,105330.0,0.01084659]
[1747677192117,0.36755629,105340.0,105330.0,0.01677605]
[1747677193199,0.36755629,105340.0,105330.0,0.02545221]
[1747677194354,0.36755629,105340.0,105330.0,0.22482551]
[1747677194529,0.35806368,105340.0,105330.0,0.21533163]
[1747677194731,0.20884689,105340.0,105330.0,0.23431921]
[1747677194937,0.21833986,105340.0,105330.0,0.23296605]
[1747677195115,0.21833986,105340.0,105330.0,0.96629162]
[1747677195706,0.21833986,105340.0,105330.0,0.97578523]
[1747677196185,0.20884725,105340.0,105330.0,0.95679792]
[1747677196359,0.19935437,105340.0,105330.0,0.57791392]
[1747677196886,0.19935437,105340.0,105330.0,0.38047892]
[1747677197086,0.23125437,105340.0,105330.0,0.38047892]
[1747677198761,0.2517614,105340.0,105330.0,0.01460562]
[1747677198965,0.36346796,105340.0,105330.0,0.01460562]
[1747677199166,0.36346796,105340.0,105330.0,0.00592946]
[1747677200394,0.3490708,105340.0,105330.0,0.00592946]
[1747677203587,0.26587321,105330.0,105320.0,0.002]
[1747677203820,0.36318261,105330.0,105320.0,0.002]
[1747677203965,0.68719567,105330.0,105320.0,0.002]
[1747677204167,0.70173652,105330.0,105320.0,0.002]
[1747677204586,0.71115162,105330.0,105320.0,0.002]
[1747677205183,0.71315162,105330.0,105320.0,0.002]
[1747677205389,0.71615162,105330.0,105320.0,0.002]
[1747677206695,0.71415162,105330.0,105320.0,0.002]
[1747677206848,0.71815162,105330.0,105320.0,0.002]